Cogmind - Beta 13 @@@ ROGUE MODE // 2024.05.17 @ 17:41:19 Player: Bace Troncons Result: Destroyed by QF-BZG(R) with Subdweller Machine Gun Performance ------------- Evolutions (0) 0 Regions Visited (2) 400 Robots Destroyed (21) 105 Value Destroyed (671) 671 Prototype IDs (10) 200 Alien Tech Used (0) 0 Bonus (0) 0 TOTAL SCORE: 1376 Bonus ------- None Cogmind --------- Core Integrity 0/250 Matter 300/300 Energy 199/200 System Corruption 0% Temperature Cool (0) Movement Rolling (120) Ox1 Location -10/Subcaves Parts ------- > --- POWER (1+1) ------ Subdweller Power Source > --- PROPULSION (2) --- Subdweller Monowheel > --- UTILITY (2) ------ Large Storage Unit > --- WEAPON (2) ------- Powered Cannon > --- INVENTORY (15) --- Aluminum Leg Aluminum Leg Makeshift Leg Small Storage Unit Hacking Suite Particle Gun Battle Cannon Battle Cannon Grenade Launcher Datajack Scrap Shield Fragment (49) Scrap Shield Fragment (48) Scrap Shield Fragment (44) Scrap Shield Fragment (41) Peak State ------------ > --- POWER ------------ Subdweller Power Source > --- PROPULSION ------- Subdweller Monowheel > --- UTILITY ---------- Large Storage Unit > --- WEAPON ----------- Powered Cannon > --- INVENTORY -------- Aluminum Leg Aluminum Leg Makeshift Leg Small Storage Unit Hacking Suite EM Pulse Gun Particle Gun Light Assault Rifle Battle Cannon Grenade Launcher Datajack Scrap Shield Fragment Scrap Shield Fragment Scrap Shield Fragment Scrap Shield Fragment [Rating: 21] Favorites ----------- Power Ion Engine Engine Ion Engine Propulsion Light Treads Treads Light Treads Wheel Subdweller Monowheel Utility Large Storage Unit Storage Large Storage Unit Weapon Light Assault Rifle Energy Gun Particle Gun Energy Cannon Powered Cannon Ballistic Gun Light Assault Rifle Ballistic Cannon Battle Cannon Build | -11 -10 -10 ------- Run | Yrd Mat Sub Slots Evolved . | . . . Power . | . . . Propulsion . | . . . Utility . | . . . Weapon . | . . . Parts Attached 17 | 6 5 6 Power 3 | 1 . 2 Engine 3 | 1 . 2 Core . | . . . Reactor . | . . . Propulsion 5 | 2 1 2 Treads 4 | 2 1 1 Leg . | . . . Wheel 1 | . . 1 Hover . | . . . Flight . | . . . Utility 2 | 1 1 . Device . | . . . Storage 2 | 1 1 . Processor . | . . . Hackware . | . . . Protection . | . . . Artifact . | . . . Weapon 7 | 2 3 2 Energy Gun 3 | 1 2 . Energy Cannon 1 | . . 1 Ballistic Gun 2 | 1 1 . Ballistic Cannon 1 | . . 1 Launcher . | . . . Special Weapon . | . . . Impact Weapon . | . . . Slashing Weapon . | . . . Piercing Weapon . | . . . Special Melee Weapon . | . . . Unidentified Prototypes . | . . . Parts Lost 6 | . 1 5 Power 2 | . . 2 Propulsion 3 | . . 3 Utility . | . . . Weapon 1 | . 1 . Highest Loss Streak 2 | . 1 2 To Critical Strikes . | . . . Average Slot Usage (%) 76 | . 86 66 Engine 13 | . 14 12 Treads 22 | . 28 16 Wheel 1 | . . 3 Storage 14 | . 16 13 Energy Gun 6 | . 11 1 Energy Cannon 2 | . . 6 Ballistic Gun 11 | . 15 6 Ballistic Cannon 2 | . . 5 Naked Turns . | . . . Heaviest Build 35 | 14 35 34 Greatest Support 40 | 40 40 40 Greatest Overweight (x) 9 | . . 9 Average Overweight (x) . | . . . Largest Inventory Capacity 15 | 8 15 15 Average Capacity 14 | 6 14 15 Most Carried 15 | 4 10 15 Average Carried 9 | 2 8 11 Final Capacity 15 | 8 15 15 Final Carried 14 | 4 9 14 Class Distribution -------------------- 100% | Mutant Dominant Class ---------------- Mutant | -10/Materials Mutant | -10/Subcaves Resources | -11 -10 -10 ----------- Run | Yrd Mat Sub Matter Collected 556 | 193 280 83 Remotely . | . . . Salvage Created 774 | . 645 129 Parts 51 | . 40 11 Haulers Intercepted 1 | . 1 . Recyclers Shooed . | . . . Parts Field Recycled . | . . . Retrieved Matter . | . . . Parts Self-Destructed 9 | . . 9 Prevented . | . . . Kills | -11 -10 -10 ------- Run | Yrd Mat Sub Combat Hostiles Destroyed 18 | . 14 4 Guns 16 | . 14 2 Cannons 1 | . . 1 Classes Destroyed 7 | . 4 3 Hauler 1 | . 1 . Operator 1 | . 1 . Watcher 1 | . 1 . Swarmer 1 | . . 1 Grunt 14 | . 14 . Sentry 1 | . . 1 Subdweller 2 | . . 2 Best Kill Streak 5 | . 5 2 Combat Bots Only 5 | . 5 2 Max Kills in Single Turn 1 | . 1 1 Gunslinging . | . . . Exploded . | . . . Melee . | . . . Uniques/NPCs Destroyed . | . . . Combat | -11 -10 -10 -------- Run | Yrd Mat Sub Hostile Shots Fired 98 | . 70 28 Missed 14 | . 10 4 Damage Taken 1146 | . 693 453 Core 260 | . 130 130 Absorbed by Shields . | . . . Core Remaining (%) 100 | 100 . . Volleys Fired 84 | . 54 30 Largest 2 | . 2 2 Hottest 85 | . 85 85 Shots Fired 139 | . 98 41 Gun 114 | . 98 16 Cannon 25 | . . 25 Launcher . | . . . Special . | . . . Kinetic 89 | . 72 17 Thermal 39 | . 15 24 Explosive . | . . . Electromagnetic 11 | . 11 . Robot Hit Streak 15 | . 15 5 Robot Miss Streak 5 | . 5 2 Penetration Max . | . . . Secondary Targets . | . . . Shots Hit Robots 77 | . 63 14 Core Hits 39 | . 35 4 Critical Kills 2 | . 1 1 Critical Parts Destroyed . | . . . Critical Strikes 2 | . 1 1 Meltdown 1 | . . 1 Destroy 1 | . 1 . Melee Attacks . | . . . Impact . | . . . Slashing . | . . . Piercing . | . . . Sneak Attacks . | . . . Combat Hostiles . | . . . Follow-up Attacks . | . . . Damage Inflicted 1244 | . 847 397 Guns 941 | . 847 94 Cannons 303 | . . 303 Explosions . | . . . Melee . | . . . Ramming . | . . . Kinetic 574 | . 553 21 Thermal 544 | . 168 376 Explosive . | . . . Electromagnetic 126 | . 126 . Impact . | . . . Slashing . | . . . Piercing . | . . . Highest Corruption . | . . . Average Corruption . | . . . Corruption Purged . | . . . Corruption Blocked . | . . . Overload Shots . | . . . Overflow Damage . | . . . Projectiles . | . . . Explosions . | . . . Melee . | . . . Knockbacks . | . . . Impact . | . . . Kinetic . | . . . Secondary . | . . . Self-Inflicted Damage . | . . . Shots . | . . . Rammed . | . . . Targets Rammed . | . . . Kicked . | . . . Crushed . | . . . Highest Temperature 255 | . 255 13 Average Temperature 61 | . 67 5 Received Heat Transfer 501 | . 405 96 Effects 1 | . 1 . Interference 1 | . 1 . Siege Activations . | . . . Robots Corrupted . | . . . Combat Hostiles . | . . . Parts Fried . | . . . Impact Corruptions . | . . . Robots Melted 1 | . . 1 Combat Hostiles 1 | . . 1 Parts Melted 3 | . 2 1 Heat Transferred 592 | . 407 185 Parts Sabotaged . | . . . Parts Stolen . | . . . Parts Stripped . | . . . Power Chain Reactions . | . . . Alert | -11 -10 -10 ------- Run | Yrd Mat Sub Peak Influence 209 | . 209 . Initial . | . . . Average 57 | . 60 . Maximum Alert Level 1 | . 1 . Low Security (%) 98 | 100 98 . Level 1 1 | . 1 . Level 2 . | . . . Level 3 . | . . . Level 4 . | . . . Level 5 . | . . . High Security . | . . . Max Security . | . . . Squads Dispatched 4 | . 4 . Investigation 3 | . 3 . Extermination . | . . . Reinforcement 1 | . 1 . Assault . | . . . Garrison . | . . . Intercept . | . . . Searches Triggered . | . . . Construction Impeded . | . . . Haulers Reinforced . | . . . Active Scanning Responses . | . . . Cargo Convoy Interrupts . | . . . Stealth | -11 -10 -10 --------- Run | Yrd Mat Sub Distress Signals . | . . . Communications Jammed . | . . . Distress Signals . | . . . Times Spotted 22 | . 17 5 Peak Tracking Total 5 | . 5 2 Tactical Retreats . | . . . Traps | -11 -10 -10 ------- Run | Yrd Mat Sub Traps Triggered 4 | . 3 1 Indirectly . | . . . Trap Hack Attempts . | . . . Triggered . | . . . Disarmed . | . . . Reprogrammed . | . . . Reused . | . . . Traps Extracted . | . . . Installed . | . . . Triggered . | . . . Machines | -11 -10 -10 ---------- Run | Yrd Mat Sub Machines Disabled 1 | . . 1 Max in Single Turn 1 | . . 1 Machines Repaired . | . . . Machines Dismantled . | . . . Machines Sabotaged . | . . . Overloaded Fab Kills . | . . . Hacking | -11 -10 -10 --------- Run | Yrd Mat Sub Machines Accessed 3 | . 2 1 Terminals 2 | . 2 . Fabricators . | . . . Repair Stations . | . . . Recycling Units . | . . . Scanalyzers . | . . . Garrison Access . | . . . Total Hacks 6 | . 5 1 Successful 3 | . 2 1 Failed 3 | . 3 . Catastrophic . | . . . Database Lockouts . | . . . Manual . | . . . Terminals 5 | . 5 . Fabricators . | . . . Repair Stations . | . . . Recycling Units . | . . . Scanalyzers . | . . . Garrison Access . | . . . Terminal Hacks 3 | . 2 1 Unreport Threat 1 | . 1 . Maintenance Status 1 | . 1 . Derelict Proto ID Bank 1 | . . 1 Fabricator Hacks . | . . . Repair Station Hacks . | . . . Recycling Unit Hacks . | . . . Scanalyzer . | . . . Garrison Access Hacks . | . . . Unauthorized Hacks . | . . . Terminals . | . . . Fabricators . | . . . Repair Stations . | . . . Recycling Units . | . . . Scanalyzers . | . . . Garrison Access . | . . . Data Cores Recovered . | . . . Used . | . . . Hacking Detections 2 | . 2 . Full Trace Events . | . . . Feedback Events . | . . . Feedback Blocked . | . . . Robot Schematics Acquired . | . . . Robots Built . | . . . Authchips . | . . . Time . | . . . Total Robot Build Rating . | . . . Part Schematics Acquired . | . . . Parts Built . | . . . Authchips . | . . . Time . | . . . Total Part Build Rating . | . . . Parts Repaired . | . . . Time . | . . . Parts Recycled . | . . . Recycled Matter . | . . . Retrieved Matter . | . . . Retrieved Components . | . . . Parts Scanalyzed . | . . . Part Schematics Acquired . | . . . Parts Damaged . | . . . Bothacking | -11 -10 -10 ------------ Run | Yrd Mat Sub Used RIF Installer . | . . . Robots Hacked . | . . . Non-combat . | . . . Combat . | . . . Robot Hacks Applied . | . . . Relay Couplers Released . | . . . Fabnet Peak Effective % . | . . . Robots Rewired . | . . . Allies Hacked . | . . . Hacks Repelled . | . . . Allies | -11 -10 -10 -------- Run | Yrd Mat Sub Total Allies . | . . . Largest Group . | . . . Highest-Rated Group . | . . . Highest-Rated Ally . | . . . Total Orders . | . . . Ally Attacks . | . . . Total Damage . | . . . Kills . | . . . Allies Corrupted . | . . . Allies Melted . | . . . Intel | -11 -10 -10 ------- Run | Yrd Mat Sub Robot Analysis Total . | . . . Derelict Logs Recovered . | . . . Drone Launches . | . . . Drone Recoveries . | . . . Exploration | -11 -10 -10 ------------- Run | Yrd Mat Sub Turns Passed 2791 | 66 1428 1297 Spaces Moved 1152 | 36 336 780 Core 11 | 3 . 8 Treads 840 | 33 336 471 Legs . | . . . Wheels 301 | . . 301 Hover . | . . . Flight . | . . . Fastest Speed 50 | 50 160 120 Average Speed 154 | 150 160 152 Slowest Speed 500 | 160 160 500 Overloaded Moves . | . . . Propulsion Burnouts . | . . . Robots Hopped . | . . . Cave-ins Triggered . | . . . Exploration Rate (%) 32 | 3 46 49 Regions Visited 2 Branch Regions 1 Pre-discovered Areas . | . . . Known Exits Taken . | . . . Unknown Exits Taken 2 | 1 1 . Scrap Searched . | . . . Spaces Dug 1 | . . 1 Terrain Destroyed 3 | . . 3 Melee . | . . . Projectile 3 | . . 3 AOE . | . . . Terrain Rammed . | . . . Walls Destroyed . | . . . Machines Disabled . | . . . Actions | -11 -10 -10 --------- Run | Yrd Mat Sub Total 2032 | 45 1134 853 Wait 758 | . 732 26 Move 1150 | 35 335 780 Hop . | . . . Pick Up 14 | 4 4 6 Fast Attach 12 | 6 2 4 Attach 4 | . 2 2 Detach 6 | . 3 3 Swap 1 | . 1 . Drop 3 | . 1 2 Fire 84 | . 54 30 Melee . | . . . Ram . | . . . Kick . | . . . Crush . | . . . Escape Stasis . | . . . Rewire . | . . . Trap . | . . . Miscellaneous . | . . . Route ------- -11/Scrapyard -10/Materials (discovered 3 exits: [*Mat] / [*Min] / *Sub) -10/Subcaves History --------- Turn | Location | Event 27 | -11/Scrapyard | Discovered new exit (range 16) 67 | -11/Scrapyard | Entered Materials 70 | -10/Materials | Discovered new exit (range 15) 315 | -10/Materials | Build established: Mutant 439 | -10/Materials | Discovered new exit (range 15) 842 | -10/Materials | Core integrity fell below 50% 1472 | -10/Materials | Discovered new exit (range 6) 1495 | -10/Materials | Entered Subcaves 1606 | -10/Subcaves | Shifting Twisted Machinery released Battle Cannon 1612 | -10/Subcaves | Shifting Twisted Machinery released Mak. Leg 2120 | -10/Subcaves | Visited 4L-MR0's lab 2141 | -10/Subcaves | Found Powered Cannon 2142 | -10/Subcaves | Attached Powered Cannon, gained temporary slot: Power 2355 | -10/Subcaves | Core integrity fell below 20% 2496 | -10/Subcaves | Shifting Twisted Machinery released Sub. Beam Cannon 2662 | -10/Subcaves | A swath of the cavern ceiling suddenly collapsed 2792 | -10/Subcaves | Destroyed by QF-BZG(R) with Subdweller Machine Gun Last Messages --------------- 02382_ Subatomizers dissect the Sub. Power Source. 02403_ Acquired Sub. Monowheel. 02409_ Acquired 10 matter. 02411_ Subatomizers dissect the Sub. Optics. 02419_ Acquired Sub. Power Source. 02424_ Subatomizers dissect the Sub. Optics. Sub. Beam Cannon falls loose from the Twisted Machinery. 02511_ UW-CKD(u) deconstructs Twisted Machinery. 02599_ Dropped EM Pulse Gun. 02600_ Acquired Battle Cannon. 02601_ Dropped Lgt. Assault Rifle. A swath of the cavern ceiling suddenly collapses. 02673_ Acquired 10 matter. 02734_ Triggered Shrapnel Trap. 02734_ An expanding cloud of shrapnel blasts out in all directions. Map ----- +----------------------------------------------------+ | ?????????????????????????????????????????????????? | | ?????????????????????????????????????????????????? | | ?????????????????????????????????????????????????? | | ?????????????????????????????????????????????????? | | ?????????????????????????????????????????????????? | | ?????????????????????????????????????????????????? | | ?????????????????????????????????????????????????? | | ?????????????????????????????????????????????????? | | ?????????????????????????????????????????????????? | | ?????????????????????????????????????????????????? | | ?????????????????????????????????????????????????? | | ?????????????????????????????????????????????????? | | ?????????????????????????????????????????????????? | | ???????????????????###???????????????????????????? | | ???????????????##### ####????????????????????????? | | ???????????##### ## #????????????????????????? | | ???????????# ## #????????????????????????? | | ??????????## ##???????????????????????? | | ?????????## " "#???????????????????????? | | ????????## """"##" "#???????????????????????? | | ????????# """####" "#???????????????????????? | | ?????##### ####??# ##???????????????????????? | | ?????# ## ##?????### #????????????????????????? | | ?????# ##??????### ##?#####?????????????????? | | ?????## ##?????# ## ## ###???????????????? | | ?????## ####### @ % R% ????????? | | ?????# ### ## # # #??????????????? | | ?????# # #^ # ### % ###?????????????????? | | ?????# ## ##???????????????????? | | ?????## ^ #?# #???????????????????? | | ??????# ## ^ "### ##???????????????????? | | ?????## ##### "## #???????????????????? | | ?????# % #??##"" ##?###???????????????? | | ?????## ##### " "## #?## ##??????????????? | | ??????#% ##? ##" ### ### % #??????????????? | | ??????## ##??# "#?# #??????????????? | | ???????##%#???# #?## % ##??????????????? | | ????????####### # # ###?# # #???????????????? | | ?????????## #### #?#### %###?????????????? | | ?????????# ##?### #?????????????? | | ????????## ### % % #?????????????? | | ????????# % #% ##?????????????? | | ?????#### % ##### ###??????????????? | | ##??## ########% ##### #####?????????????? | | #### ##?????## # ###???????????? | | ### ###??????# #???????????? | | # ####?????## ### %& #???????????? | | ""##??????### ###?## # #???????????? | | #""# #?????###????#####? #??????????? | | # ##"# ?????????????? #??????????? | +----------------------------------------------------+ Best States ------------- Heat Dissipation 25 Energy Generation 15 Energy Capacity 250 Matter Stores 300 Matter Capacity 300 Sight Range 16 Terrain Scan Density 10 Evasion (%) 40 Recoil Reduction 2 Item Schematics ----------------- None Robot Schematics ------------------ None Fabricated ------------ Nothing Alien Tech Used ----------------- None Achievements -------------- None Challenges ------------ None Game ------ Seed BlastCloakingNanosword Manual? 0 Play Time 00:23:13 Cumulative 73.1 hours Start 2024.05.17 @ 17:15:48 End 2024.05.17 @ 17:41:19 Sessions 1 Manual Loads 0 Difficulty Rogue Special Mode None Game No. 110 Rogue 110 Adventurer 0 Explorer 0 Win Type - Total 1 Types 1/0/0/0/0/0/0/0/0 Lore% 37 Gallery% 42 Achievement% 31 Wizard Run 0 Options --------- Layout 1 ASCII 0 Keyboard 1 Movement Numpad Keybinds 0 Fullscreen 1 Font 24/Smallcaps Map View 50x35 Zoom Use 0% Tactical HUD 1 Map Filters NONE Filters NONE Steam 1 RUN: 18aa1b6b-caa9-4315-982c-59da4be895c2